fUSD/lending_fUSD_20260402
["ID","MTS","AMOUNT","RATE_DAILY","PERIOD"]
[419314773,1775151048745,-2500.0,0.00015064,2]
[419314774,1775151048755,-294.980917,0.00015068,2]
[419314775,1775151048763,-294.980917,0.00015068,2]
[419314776,1775151048772,-294.980917,0.00015068,2]
[419314777,1775151048781,-294.980917,0.00015068,2]
[419314778,1775151048790,-294.980917,0.00015068,2]
[419314779,1775151048799,-294.980917,0.00015068,2]
[419314780,1775151048808,-294.980917,0.00015068,2]
[419314781,1775151048817,-294.980917,0.00015068,2]
[419314782,1775151048826,-800.0,0.00015068,2]
[419314783,1775151048835,-155.0,0.00015081,3]
[419314784,1775151048844,-701.50098518,0.00015128,2]
[419314785,1775151048853,-273.54265411,0.00015155,2]
[419314786,1775151048862,-198.3901028,0.00015175,2]
[419314787,1775151048872,-201.7588,0.000152,12]
[419314788,1775151048882,-226.51759959,0.00015213,2]
[419314789,1775151048891,-435.89138838,0.00015238,3]
[419314790,1775151048900,-901.25,0.00015262,2]
[419314791,1775151048909,-186.75639601,0.00015275,2]
[419314792,1775151048919,-587.0,0.0001528,2]
[419314793,1775151048927,-413.0,0.0001528,2]
[419314794,1775151048937,-273.4396,0.00015321,2]
[419314795,1775151048946,-436.96138127,0.00015342,2]
[419314796,1775151048955,-500.0,0.00015342,2]
[419314797,1775151048964,-2000.0,0.00015342,2]
[419314798,1775151048974,-2351.0,0.00015363,2]
[419314799,1775151048984,-200.0,0.00015365,2]
[419314800,1775151048992,-194.72792766,0.00015365,2]
[419314801,1775151049002,-668.93096053,0.00015365,2]
[419314802,1775151049011,-166.67,0.00015379,2]
[419314803,1775151049020,-561.59815036,0.00015396,2]
[419314804,1775151049031,-500.0,0.00015396,2]
[419314805,1775151049041,-1000.0,0.00015442,2]
[419314806,1775151049050,-1000.0,0.00015442,2]
[419314807,1775151049059,-246.472,0.00015442,2]
[419314808,1775151049068,-881.27,0.00015462,2]
[419314809,1775151049078,-31305.25221067,0.000155,2]
[419314810,1775151049089,-16107.98076716,0.000155,2]
[419314811,1775151049098,-151.0,0.000155,2]
[419314812,1775151049107,-151.0,0.000155,2]
[419314813,1775151049116,-151.0,0.000155,2]
[419314814,1775151049125,-151.0,0.000155,2]
[419314815,1775151049136,-151.0,0.000155,2]
[419314816,1775151049146,-151.0,0.000155,2]
[419314817,1775151049157,-151.0,0.000155,2]
[419314818,1775151049167,-350.0,0.00015516,2]
[419314819,1775151049177,-333.18,0.00015526,2]
[419314820,1775151049187,-561.05595772,0.00015527,2]
[419314821,1775151049198,-1003.62269392,0.00015612,2]
[419314822,1775151049208,-217.22611884,0.00015615,2]
[419314823,1775151049218,-200.0,0.00015634,2]
[419314824,1775151049227,-350.0,0.00015638,2]
[419314825,1775151049236,-205.39463557,0.00015654,2]
[419314826,1775151049245,-500.0,0.00015679,2]
[419314827,1775151049254,-500.0,0.00015679,2]
[419314828,1775151049263,-500.0,0.00015679,2]
[419314829,1775151049272,-1528.46271437,0.00015701,2]
[419314830,1775151049281,-903.14,0.00015731,2]
[419314831,1775151049290,-880.73,0.00015736,2]
[419314832,1775151049299,-151.0,0.0001574,2]
[419314833,1775151049309,-151.0,0.0001574,2]
[419314834,1775151049318,-151.0,0.0001574,2]
[419314835,1775151049327,-151.0,0.0001574,2]
[419314836,1775151049337,-226.99,0.00015741,2]
[419314837,1775151049346,-24984.01404667,0.0001584,2]
[419314838,1775151049355,-151.0,0.00015889,2]
[419314839,1775151049363,-151.0,0.00015889,2]
[419314840,1775151049372,-151.0,0.00015889,2]
[419314841,1775151049381,-229.672182,0.00015889,2]
[419314842,1775151049390,-215.351564,0.0001589,7]
[419314843,1775151049399,-500.0,0.0001589,2]
[419314844,1775151049408,-519.17533645,0.0001589,2]
[419314845,1775151049417,-2189.49668369,0.0001589,2]
[419314846,1775151049426,-666.0,0.00015899,2]
[419314847,1775151049435,-500.0,0.00015899,2]
[419314848,1775151049444,-500.0,0.00015899,2]
[419314849,1775151049453,-500.0,0.00015899,2]
[419314850,1775151049462,-500.0,0.00015899,2]
[419314851,1775151049471,-150.0,0.000159,2]
[419314852,1775151049480,-150.0,0.000159,2]
[419314853,1775151049489,-150.0,0.000159,2]
[419314854,1775151049498,-150.0,0.000159,2]
[419314855,1775151049508,-150.0,0.000159,2]
[419314856,1775151049517,-13800.0,0.000159,5]
[419314857,1775151049526,-176.92215124,0.000159,2]
[419314858,1775151049535,-200.0,0.00015913,2]
[419314859,1775151049544,-201.93286099,0.00015913,2]
[419314860,1775151049553,-183.08117063,0.0001592,2]
[419314861,1775151049562,-160.0,0.00015966,2]
[419314862,1775151049571,-31305.25221067,0.00015966,2]
[419314863,1775151049580,-16107.98076716,0.00015966,2]
[419314864,1775151049589,-359.66331739,0.00015973,2]
[419314865,1775151049598,-151.0,0.00015986,2]
[419314866,1775151049608,-500.0,0.00015988,2]
[419314867,1775151049617,-500.0,0.00015988,2]
[419314868,1775151049626,-560.26992901,0.00015988,2]
[419314870,1775151049635,-500.0,0.00015988,2]
[419314872,1775151049644,-700.13141753,0.00015988,2]
[419314873,1775151049653,-10364.03205378,0.00015989,2]
[419314875,1775151050315,-10467.63417696,0.00015989,2]
[419314876,1775151050994,-500.0,0.00013698,2]
[419314877,1775151051004,-3094.06331873,0.00015989,2]
[419314878,1775151051019,-5700.45216036,0.00015989,2]
[419314879,1775151051030,-586.96526,0.00015989,2]
[419314880,1775151051042,-500.0,0.00015989,2]
[419314881,1775151051053,-4721.12556633,0.00015989,2]
[419314882,1775151051083,-500.0,0.00013698,2]
[419314883,1775151051092,-842.2,0.00015989,2]
[419314884,1775151051115,-4051.58577808,0.00015989,2]
[419314885,1775151051126,-341.04,0.00015989,2]
[419314886,1775151053030,-500.0,0.00013698,2]
[419314887,1775151053041,-151.98542784,0.00013698,2]
[419314888,1775151053053,-348.01457216,0.00013698,2]
[419314889,1775151053063,-500.0,0.00013698,2]
[419314890,1775151053072,-160.0,0.00013817,7]
[419314891,1775151053083,-259.018838,0.00013817,7]
[419314892,1775151053092,-358.037676,0.00013817,7]
[419314893,1775151053103,-2000.0,0.00015801,2]
[419314894,1775151053115,-2000.0,0.00015901,2]
[419314895,1775151053126,-20614.27238153,0.00015989,2]
[419314896,1775151053139,-7629.51241606,0.00015989,2]
[419314897,1775151053150,-494.61771879,0.00015989,2]
[419314898,1775151053162,-701.11031412,0.00015989,2]
[419314899,1775151053202,-338.84256705,0.00015989,2]
[419314900,1775151053216,-4152.69968319,0.00015989,2]
[419314901,1775151053227,-6222.00771292,0.00015989,2]
[419314902,1775151053240,-1659.78051857,0.00015989,2]
[419314903,1775151053251,-4159.08994091,0.00015989,2]
[419314904,1775151053263,-78647.8079711,0.00015989,2]
[419314905,1775151054075,-353.207506,0.00014508,7]
[419314906,1775151054085,-74.25764904,0.00015989,2]
[419314907,1775151054098,-220.41292618,0.00015989,2]
[419314908,1775151054109,-3110.6724115,0.00015989,2]
[419314909,1775151054119,-5781.53738275,0.00015989,2]
[419314910,1775151054131,-7105.29568055,0.00015989,2]
[419314911,1775151054141,-170.2742689,0.00015989,2]
[419314912,1775151054151,-151.0,0.00015989,2]
[419314913,1775151054161,-151.0,0.00015989,2]
[419314914,1775151054173,-151.0,0.00015989,2]
[419314915,1775151054182,-151.0,0.00015989,2]
[419314916,1775151054191,-3279.8075092,0.00015989,2]
[419314917,1775151054200,-79.03081677,0.00015989,2]
[419314918,1775151054219,-71.96918323,0.00015989,2]
[419314919,1775151054231,-151.0,0.00015989,2]
[419314920,1775151054240,-162.8968061,0.00015989,2]
[419314921,1775151054251,-37.1436119,0.00015989,2]
[419314922,1775151054259,-151.0,0.00015989,2]
[419314923,1775151054267,-151.0,0.00015989,2]
[419314924,1775151054274,-151.0,0.00015989,2]
[419314925,1775151054281,-153.537546,0.00015989,2]
[419314926,1775151054287,-29.5988421,0.00015989,2]
[419314928,1775151595078,166.0,0.00016101,120]
[419314939,1775152232079,-343.32323318,0.000118,2]
[419314940,1775152232091,-1636.39515931,0.000118,2]
[419314941,1775152232100,-1500.0,0.00011815,2]
[419314942,1775152232109,-152.59,0.00011815,2]
[419314943,1775152232118,-290.00006495,0.00012346,2]
[419314944,1775152232201,-454.55387908,0.00012346,2]
[419314945,1775152232326,-455.44605597,0.00012346,2]
[419314946,1775152232336,-2475.012,0.00012347,2]
[419314947,1775152232347,-167.816,0.00012347,2]
[419314948,1775152232356,-2803.22689696,0.00012396,2]
[419314949,1775152232366,-3289.2375086,0.00012399,2]
[419314950,1775152232378,-2629.42883758,0.00012399,2]
[419314951,1775152232390,-740.01793856,0.00012399,2]
[419314952,1775152232401,-3301.96646245,0.00012399,2]
[419314953,1775152232413,-9053.54862347,0.00012399,2]
[419314954,1775152232444,-665.79967857,0.00012399,2]
[419315195,1775152238305,-1313.22697026,0.00012396,2]
[419315196,1775152238317,-297.45040175,0.00012398,2]
[419315197,1775152238329,-46950.29789168,0.00012399,2]
[419315198,1775152238463,-916.72797296,0.00012399,2]
[419315199,1775152238476,-5332.01177804,0.00012399,2]
[419315200,1775152238488,-4883.8640579,0.00012399,2]
[419315202,1775152239553,-891662.94485019,0.00012399,2]
[419315203,1775152239586,-300.0,0.00012496,2]
[419315204,1775152239605,-150.0,0.00012498,2]
[419315205,1775152239615,-393.88585338,0.00012499,2]
[419315206,1775152239624,-500.0,0.00012573,2]
[419315207,1775152239634,-200.0,0.00012587,2]
[419315208,1775152239643,-200.0,0.00012591,2]
[419315209,1775152239652,-503.74966854,0.00012591,2]
[419315210,1775152239662,-151.0,0.00012591,2]
[419315211,1775152239672,-151.0,0.00012591,2]
[419315212,1775152239681,-151.0,0.00012591,2]
[419315213,1775152239691,-151.0,0.00012591,2]
[419315214,1775152239701,-151.0,0.00012591,2]
[419315215,1775152239711,-151.0,0.00012591,2]
[419315216,1775152239721,-151.0,0.00012591,2]
[419315217,1775152239731,-496.32304571,0.00012591,2]
[419315218,1775152239740,-151.0,0.00012591,2]
[419315219,1775152239750,-151.0,0.00012591,2]
[419315220,1775152239760,-151.0,0.00012591,2]
[419315221,1775152239769,-151.0,0.00012591,2]
[419315222,1775152239779,-151.0,0.00012591,2]
[419315223,1775152239788,-151.0,0.00012591,2]
[419315224,1775152239799,-151.0,0.00012591,2]
[419315225,1775152239808,-151.0,0.00012591,2]
[419315226,1775152239818,-151.0,0.00012591,2]
[419315227,1775152239827,-151.0,0.00012591,2]
[419315229,1775152239836,-151.0,0.00012591,2]
[419315230,1775152239846,-151.0,0.00012591,2]
[419315231,1775152239855,-273.20808876,0.00012591,2]
[419315232,1775152239864,-151.0,0.00012591,2]
[419315233,1775152239874,-151.0,0.00012591,2]
[419315234,1775152239884,-151.0,0.00012591,2]
[419315235,1775152239893,-151.0,0.00012591,2]
[419315236,1775152239903,-151.0,0.00012591,2]
[419315237,1775152239912,-151.0,0.00012591,2]
[419315238,1775152239923,-768.13173308,0.00012598,2]
[419315239,1775152239933,-4817.47,0.00012598,2]
[419315240,1775152239943,-1795.1287,0.00012599,2]
[419315241,1775152239952,-6973.6711,0.00012698,2]
[419315242,1775152239963,-1000.0,0.00012698,2]
[419315243,1775152239972,-1600.0,0.00012748,2]
[419315244,1775152239982,-2000.0,0.00012748,2]
[419315245,1775152239993,-155.0,0.00012892,2]
[419315246,1775152240002,-222.0,0.00012892,2]
[419315247,1775152240011,-250.0,0.00012997,2]
[419315248,1775152240022,-500.0,0.0001306,2]
[419315249,1775152240031,-501.0,0.00013111,2]
[419315250,1775152240041,-599.27710317,0.00013121,2]
[419315252,1775152240051,-200.0,0.00013139,2]
[419315254,1775152240060,-341.0,0.00013199,2]
[419315255,1775152240070,-236.0,0.00013294,2]
[419315256,1775152240080,-311.0,0.00013294,2]
[419315257,1775152240089,-202.0,0.00013301,2]
[419315258,1775152240099,-3240.0,0.00013425,2]
[419315259,1775152240109,-150.0,0.00013494,2]
[419315260,1775152240118,-5065.45,0.00013494,2]
[419315261,1775152240128,-1680.0,0.00013581,2]
[419315262,1775152240137,-255.0,0.00013598,2]
[419315263,1775152240146,-1000.0,0.00013608,2]
[419315264,1775152240156,-262.68,0.00013647,2]
[419315265,1775152240165,-500.0,0.00013698,2]
[419315266,1775152240175,-500.0,0.00013698,2]
[419315267,1775152240184,-500.0,0.00013698,2]
[419315268,1775152240194,-500.0,0.00013698,2]
[419315269,1775152240204,-500.0,0.00013698,2]
[419315270,1775152240213,-500.0,0.00013698,2]
[419315271,1775152240223,-500.0,0.00013698,2]
[419315272,1775152240232,-500.0,0.00013698,2]
[419315273,1775152240243,-500.0,0.00013698,2]
[419315274,1775152240255,-500.0,0.00013698,2]
[419315275,1775152240264,-500.0,0.00013698,2]
[419315276,1775152240274,-500.0,0.00013698,2]
[419315277,1775152240283,-500.0,0.00013698,2]
[419315279,1775152240292,-509.91183271,0.00013698,2]
[419315281,1775152240302,-319.28218799,0.00013698,2]
[419315283,1775152240312,-500.0,0.00013698,2]
[419315285,1775152240322,-500.0,0.00013698,2]
[419315287,1775152240332,-500.0,0.00013698,2]
[419315288,1775152240342,-500.0,0.00013698,2]
[419315289,1775152240352,-323.24561816,0.00013698,2]
[419315290,1775152240362,-500.0,0.00013698,2]
[419315291,1775152240371,-500.0,0.00013698,2]
[419315292,1775152240380,-500.0,0.00013698,2]
[419315293,1775152240390,-264.49213527,0.00013698,2]
[419315294,1775152240399,-500.0,0.00013698,2]
[419315295,1775152240408,-500.0,0.00013698,2]
[419315296,1775152240421,-500.0,0.00013698,2]
[419315297,1775152240431,-500.0,0.00013698,2]
[419315298,1775152240441,-500.0,0.00013698,2]
[419315299,1775152240452,-500.0,0.00013698,2]
[419315300,1775152240463,-500.0,0.00013698,2]
[419315301,1775152240473,-500.0,0.00013698,2]
[419315302,1775152240483,-287.90940337,0.00013698,2]
[419315303,1775152241026,-212.09059663,0.00013698,2]
[419315304,1775152241036,-500.0,0.00013698,2]
[419315305,1775152241047,-500.0,0.00013698,2]
[419315306,1775152241057,-488.21639013,0.00013698,2]
[419315307,1775152241067,-887.84,0.00013698,2]
[419315308,1775152241077,-500.0,0.00013698,2]
[419315309,1775152241087,-500.0,0.00013698,2]
[419315310,1775152241097,-105.52482469,0.00013698,2]
[419315311,1775152241123,-394.47517531,0.00013698,2]
[419315312,1775152241133,-503.96151551,0.00013698,2]
[419315313,1775152241143,-500.0,0.00013698,2]
[419315314,1775152241153,-500.0,0.00013698,2]
[419315316,1775152241162,-500.0,0.00013698,2]
[419315318,1775152241172,-500.0,0.00013698,2]
[419315320,1775152241181,-500.0,0.00013698,2]
[419315322,1775152241191,-500.0,0.00013698,2]
[419315324,1775152241200,-500.0,0.00013698,2]
[419315326,1775152241210,-500.0,0.00013698,2]
[419315328,1775152241219,-500.0,0.00013698,2]
[419315330,1775152241228,-500.0,0.00013698,2]
[419315332,1775152241237,-500.0,0.00013698,2]
[419315334,1775152241246,-500.0,0.00013698,2]
[419315335,1775152241255,-500.0,0.00013698,2]
[419315336,1775152241264,-500.0,0.00013698,2]
[419315337,1775152241274,-500.0,0.00013698,2]
[419315338,1775152241284,-500.0,0.00013698,2]
[419315339,1775152241293,-500.0,0.00013698,2]
[419315340,1775152241302,-500.0,0.00013698,2]
[419315341,1775152241311,-500.0,0.00013698,2]
[419315342,1775152241320,-500.0,0.00013698,2]
[419315343,1775152241330,-500.0,0.00013698,2]
[419315345,1775152241339,-500.0,0.00013698,2]
[419315346,1775152241349,-500.0,0.00013698,2]
[419315348,1775152241358,-500.0,0.00013698,2]
[419315350,1775152241367,-508.65862639,0.00013698,2]
[419315352,1775152241376,-500.0,0.00013698,2]
[419315354,1775152241385,-500.0,0.00013698,2]
[419315356,1775152241394,-500.0,0.00013698,2]
[419315358,1775152241403,-500.0,0.00013698,2]
[419315360,1775152241413,-500.0,0.00013698,2]
[419315362,1775152241422,-500.0,0.00013698,2]
[419315364,1775152241431,-500.0,0.00013698,2]
[419315366,1775152241440,-500.0,0.00013698,2]
[419315369,1775152241449,-500.0,0.00013698,2]
[419315372,1775152241458,-500.0,0.00013698,2]
[419315375,1775152241468,-500.0,0.00013698,2]
[419315377,1775152241477,-500.0,0.00013698,2]
[419315379,1775152241486,-500.0,0.00013698,2]
[419315381,1775152241495,-500.0,0.00013698,2]
[419315383,1775152241505,-500.0,0.00013698,2]
[419315385,1775152241515,-500.0,0.00013698,2]
[419315387,1775152241524,-500.0,0.00013698,2]
[419315389,1775152241533,-500.0,0.00013698,2]
[419315391,1775152241543,-500.0,0.00013698,2]
[419315393,1775152241552,-561.59815036,0.00013698,2]
[419315395,1775152241561,-500.0,0.00013698,2]
[419315397,1775152241570,-262.05217327,0.00013698,2]
[419315399,1775152241579,-500.0,0.00013698,2]
[419315401,1775152241588,-500.0,0.00013698,2]
[419315403,1775152241597,-500.0,0.00013698,2]
[419315405,1775152241607,-500.0,0.00013698,2]
[419315407,1775152241617,-500.0,0.00013698,2]
[419315409,1775152241626,-500.0,0.00013698,2]
[419315411,1775152241635,-500.0,0.00013698,2]
[419315413,1775152241644,-500.0,0.00013698,2]
[419315415,1775152241653,-500.0,0.00013698,2]
[419315417,1775152241664,-500.0,0.00013698,2]
[419315419,1775152241674,-500.0,0.00013698,2]
[419315420,1775152241683,-500.0,0.00013698,2]
[419315422,1775152241694,-500.0,0.00013698,2]
[419315424,1775152241703,-500.0,0.00013698,2]
[419315425,1775152241713,-500.0,0.00013698,2]
[419315426,1775152241723,-500.0,0.00013698,2]
[419315427,1775152241733,-500.0,0.00013698,2]
[419315428,1775152241743,-150.0,0.00013699,2]
[419315429,1775152241753,-2095.52,0.00013699,2]
[419315430,1775152241763,-500.0,0.00013699,2]
[419315431,1775152241772,-609.23348249,0.00013699,2]
[419315432,1775152241782,-500.0,0.00013699,2]
[419315433,1775152241792,-207.82,0.00013699,2]
[419315434,1775152241801,-420.0,0.00013711,2]
[419315435,1775152241811,-396.61291239,0.00013721,2]
[419315436,1775152241820,-150.0,0.000139,2]
[419315437,1775152241830,-500.0,0.00013907,2]
[419315438,1775152241840,-887.84,0.00013972,2]
[419315439,1775152241850,-9601.90631203,0.00014006,2]
[419315440,1775152241938,-1500.0,0.00014156,2]
[419315441,1775152241947,-785.32,0.00014164,2]
[419315442,1775152241956,-887.84,0.00014246,2]
[419315443,1775152241966,-1600.0,0.00014342,2]
[419315444,1775152241976,-2000.0,0.00014342,2]
[419315445,1775152241985,-500.0,0.00014353,2]
[419315446,1775152241994,-500.0,0.00014353,2]
[419315447,1775152242003,-500.0,0.00014353,2]
[419315448,1775152242012,-500.0,0.00014353,2]
[419315449,1775152242022,-188.97105714,0.00014366,2]
[419315450,1775152242032,-2095.52,0.00014384,2]
[419315451,1775152242043,-500.0,0.00014399,2]
[419315452,1775152242053,-500.0,0.00014399,2]
[419315453,1775152242063,-500.0,0.00014399,2]
[419315454,1775152242072,-325.64720677,0.00014399,2]
[419315455,1775152242080,-366.77031377,0.00014399,2]
[419315456,1775152242090,-301.38330365,0.00014399,2]
[419315457,1775152242099,-526.53378609,0.00014399,2]
[419315458,1775152242109,-159.15058435,0.00014399,2]
[419315459,1775152242118,-150.0,0.000144,2]
[419315460,1775152242127,-150.0,0.000144,2]
[419315461,1775152242136,-150.0,0.000144,2]
[419315462,1775152242145,-150.0,0.000144,2]
[419315463,1775152242155,-150.0,0.000144,2]
[419315464,1775152242163,-150.0,0.000144,2]
[419315465,1775152242173,-150.0,0.000144,2]
[419315466,1775152242183,-150.00000001,0.000144,2]
[419315467,1775152242192,-262.68000001,0.000144,2]
[419315468,1775152242202,-150.0,0.000144,2]
[419315469,1775152242214,-150.0,0.000144,2]
[419315470,1775152242223,-150.0,0.000144,2]
[419315471,1775152242233,-785.32,0.00014438,2]
[419315472,1775152242242,-1428.38747117,0.00014458,2]
[419315473,1775152242252,-9552.16786547,0.00014458,2]
[419315474,1775152242261,-500.0,0.00014458,2]
[419315475,1775152242270,-200.0,0.00014458,2]
[419315476,1775152242279,-500.0,0.00014458,2]
[419315477,1775152242288,-500.0,0.00014458,2]
[419315478,1775152242297,-500.0,0.00014458,2]
[419315479,1775152242307,-500.0,0.00014458,2]
[419315480,1775152242316,-500.0,0.00014458,2]
[419315481,1775152242325,-500.0,0.00014458,2]
[419315482,1775152242334,-500.0,0.00014458,2]
[419315483,1775152242343,-500.0,0.00014458,2]
[419315484,1775152242352,-500.0,0.00014458,2]
[419315485,1775152242361,-500.0,0.00014458,2]
[419315486,1775152242370,-500.0,0.00014458,2]
[419315487,1775152242379,-500.0,0.00014458,2]
[419315488,1775152242388,-500.0,0.00014458,2]
[419315489,1775152242398,-500.0,0.00014458,2]
[419315490,1775152242407,-500.0,0.00014458,2]
[419315491,1775152242416,-500.0,0.00014458,2]
[419315492,1775152242425,-500.0,0.00014458,2]
[419315493,1775152242435,-500.0,0.00014458,2]
[419315494,1775152242444,-500.0,0.00014458,2]
[419315495,1775152242454,-500.0,0.00014458,2]
[419315496,1775152242466,-500.0,0.00014458,2]
[419315497,1775152242475,-151.0,0.00014458,2]
[419315498,1775152242484,-500.0,0.00014458,2]
[419315499,1775152242494,-174.61919141,0.00014458,2]
[419315500,1775152242503,-500.0,0.00014458,2]
[419315501,1775152242515,-200.0,0.00014458,2]
[419315502,1775152242525,-500.0,0.00014458,2]
[419315503,1775152242535,-500.0,0.00014458,2]
[419315504,1775152242546,-500.0,0.00014458,2]
[419315505,1775152242555,-500.0,0.00014458,2]
[419315506,1775152242564,-500.0,0.00014458,2]
[419315507,1775152242573,-250.0,0.00014458,2]
[419315508,1775152242583,-500.0,0.00014458,2]
[419315509,1775152242592,-250.0,0.00014458,2]
[419315510,1775152242602,-250.0,0.00014458,2]
[419315511,1775152242611,-500.0,0.00014458,2]
[419315512,1775152242621,-250.0,0.00014458,2]
[419315513,1775152242630,-250.0,0.00014458,2]
[419315514,1775152242639,-500.0,0.00014458,2]
[419315515,1775152242648,-250.0,0.00014458,2]
[419315516,1775152242658,-500.0,0.00014458,2]
[419315517,1775152242667,-250.0,0.00014458,2]
[419315518,1775152242676,-500.0,0.00014458,2]
[419315519,1775152242686,-290.26104003,0.00014458,2]
[419315520,1775152242695,-250.0,0.00014458,2]
[419315521,1775152242704,-250.0,0.00014458,2]
[419315522,1775152242714,-250.0,0.00014458,2]
[419315523,1775152242723,-250.0,0.00014458,2]
[419315524,1775152242733,-743.50770149,0.00014458,2]
[419315525,1775152242743,-170.0,0.00014458,2]
[419315526,1775152242752,-170.0,0.00014458,2]
[419315527,1775152242762,-170.0,0.00014458,2]
[419315528,1775152242771,-170.0,0.00014458,2]
[419315529,1775152242780,-170.0,0.00014458,2]
[419315530,1775152242790,-170.0,0.00014458,2]
[419315531,1775152242799,-170.0,0.00014458,2]
[419315532,1775152242809,-170.0,0.00014458,2]
[419315533,1775152242818,-170.0,0.00014458,2]
[419315534,1775152242828,-170.0,0.00014458,2]
[419315535,1775152242836,-170.0,0.00014458,2]
[419315536,1775152242846,-9905.5980765,0.00014513,2]
[419315537,1775152242855,-500.0,0.00014513,2]
[419315538,1775152242863,-151.0,0.00014513,2]
[419315539,1775152242874,-887.84,0.0001452,2]
[419315540,1775152242883,-500.0,0.00014568,2]
[419315541,1775152242893,-2193.03595158,0.00014568,2]
[419315542,1775152242903,-151.0,0.00014568,2]
[419315543,1775152242912,-500.0,0.00014612,2]
[419315544,1775152242922,-500.0,0.00014612,2]
[419315545,1775152242931,-500.0,0.00014612,2]
[419315546,1775152242940,-500.0,0.00014612,2]
[419315547,1775152242950,-500.0,0.00014623,2]
[419315548,1775152242960,-151.0,0.00014623,2]
[419315549,1775152242969,-500.0,0.00014678,2]
[419315550,1775152242978,-151.0,0.00014678,2]
[419315551,1775152242987,-2000.0,0.00014704,2]
[419315552,1775152242997,-901.25,0.00014712,2]
[419315553,1775152243007,-500.0,0.00014733,2]
[419315554,1775152243016,-151.0,0.00014733,2]
[419315555,1775152243025,-500.0,0.00014764,2]
[419315556,1775152243035,-500.0,0.00014764,2]
[419315558,1775152243046,-500.0,0.00014764,2]
[419315560,1775152243056,-500.0,0.00014788,2]
[419315561,1775152243066,-151.0,0.00014788,2]
[419315563,1775152243075,-887.84,0.00014794,2]
[419315564,1775152243084,-433.0,0.00014798,2]
[419315565,1775152243093,-500.0,0.00014843,2]
[419315567,1775152243103,-151.0,0.00014843,2]
[419315569,1775152243112,-500.0,0.00014898,2]
[419315570,1775152243122,-151.0,0.00014898,2]
[419315571,1775152243131,-150.0,0.00014933,2]
[419315572,1775152243140,-2351.0,0.00014939,2]
[419315573,1775152243150,-500.0,0.00014953,2]
[419315574,1775152243161,-151.0,0.00014953,2]
[419315575,1775152243170,-1481.23780761,0.00015006,2]
[419315577,1775152243180,-200.0,0.00015006,2]
[419315579,1775152243190,-181.08010149,0.00015006,2]
[419315580,1775152243199,-771.01748645,0.00015006,2]
[419315581,1775152243209,-500.0,0.00015008,2]
[419315582,1775152243219,-151.0,0.00015008,2]
[419315583,1775152243229,-887.84,0.00015068,2]
[419315584,1775152243239,-881.27,0.00015068,2]
[419315585,1775152243249,-359.89,0.00015068,2]
[419315587,1775152243259,-2095.52,0.00015068,2]
[419315588,1775152243269,-800.0,0.00015068,2]
[419315590,1775152243279,-173.9181,0.000151,7]
[419315591,1775152243289,-264.60682018,0.00015103,2]
[419315592,1775152243299,-150.0,0.000152,2]
[419315593,1775152243308,-150.0,0.000152,2]
[419315594,1775152243318,-350.0,0.000152,2]
[419315595,1775152243328,-10000.0,0.00015205,2]